[Event "Early-Titled-Tuesday-Blitz-August-29-2023"]
[Site "Chess.com"]
[Date "2023.08.29"]
[Round "1"]
[White "Aswathchess"]
[Black "vladislavkovalev"]
[Result "0-1"]
[WhiteElo "2480"]
[BlackElo "2904"]
[TimeControl "180+1"]
[EndTime "8:07:15 PDT"]
[Termination "vladislavkovalev won by resignation"]

1. e4 {[%clk 0:02:59.7]} 1... e5 {[%clk 0:03:00.4]} 2. Nf3 {[%clk 0:02:58.9]}
2... Nc6 {[%clk 0:03:01.1]} 3. Bc4 {[%clk 0:02:59]} 3... Nf6 {[%clk 0:03:00.9]}
4. d3 {[%clk 0:02:59]} 4... Be7 {[%clk 0:03:01.3]} 5. O-O {[%clk 0:02:58.8]}
5... d6 {[%clk 0:03:01.9]} 6. a4 {[%clk 0:02:58.4]} 6... O-O {[%clk 0:03:02.2]}
7. h3 {[%clk 0:02:58.5]} 7... Kh8 {[%clk 0:03:02.2]} 8. Ng5 {[%clk 0:02:53.4]}
8... Qe8 {[%clk 0:02:57]} 9. c3 {[%clk 0:02:50.1]} 9... h6 {[%clk 0:02:43.8]}
10. Nf3 {[%clk 0:02:48.2]} 10... Nh7 {[%clk 0:02:43.9]} 11. Nbd2 {[%clk
0:02:25.8]} 11... f5 {[%clk 0:02:43.7]} 12. exf5 {[%clk 0:02:24.1]} 12... Bxf5
{[%clk 0:02:44.6]} 13. Ne4 {[%clk 0:02:19]} 13... Qg6 {[%clk 0:02:36.6]} 14. Ng3
{[%clk 0:02:16.2]} 14... Bd7 {[%clk 0:02:31.2]} 15. a5 {[%clk 0:02:10.9]} 15...
a6 {[%clk 0:02:30.1]} 16. Qb3 {[%clk 0:02:09.6]} 16... Rab8 {[%clk 0:02:28.9]}
17. Qd1 {[%clk 0:01:49]} 17... Nf6 {[%clk 0:02:26.1]} 18. Nh4 {[%clk 0:01:40.4]}
18... Qh7 {[%clk 0:02:26.1]} 19. d4 {[%clk 0:01:40.3]} 19... e4 {[%clk
0:02:21.4]} 20. Bb3 {[%clk 0:01:15.3]} 20... g5 {[%clk 0:02:20]} 21. d5 {[%clk
0:01:05.4]} 21... Ne5 {[%clk 0:02:19.4]} 22. f4 {[%clk 0:01:04.4]} 22... gxh4
{[%clk 0:01:49.9]} 23. fxe5 {[%clk 0:01:04.4]} 23... hxg3 {[%clk 0:01:50.6]} 24.
exf6 {[%clk 0:01:04.8]} 24... Bxf6 {[%clk 0:01:50.9]} 25. Bf4 {[%clk 0:01:04.9]}
25... Qg6 {[%clk 0:01:46.2]} 26. Qe2 {[%clk 0:01:05.2]} 26... Rbe8 {[%clk
0:01:42.1]} 27. Qe3 {[%clk 0:01:05.5]} 27... Be5 {[%clk 0:01:38.4]} 28. Bxh6
{[%clk 0:01:05]} 28... Rf2 {[%clk 0:01:37.4]} 29. Rxf2 {[%clk 0:00:59.4]} 29...
gxf2+ {[%clk 0:01:38.3]} 30. Kxf2 {[%clk 0:00:59.6]} 30... Rg8 {[%clk
0:01:22.5]} 31. g4 {[%clk 0:00:59.8]} 31... Kh7 {[%clk 0:01:18.7]} 32. g5 {[%clk
0:00:52.6]} 32... Qf5+ {[%clk 0:01:19.2]} 33. Ke2 {[%clk 0:00:45.3]} 33... Bf4
{[%clk 0:01:17.3]} 34. Qf2 {[%clk 0:00:45.4]} 34... Bb5+ {[%clk 0:00:33.9]} 35.
c4 {[%clk 0:00:45.4]} 35... Qe5 {[%clk 0:00:34.5]} 36. Kd1 {[%clk 0:00:36.1]}
36... Be8 {[%clk 0:00:34.2]} 37. Bc2 {[%clk 0:00:33]} 37... Bh5+ {[%clk
0:00:33.7]} 38. Ke1 {[%clk 0:00:32.1]} 38... Bg3 {[%clk 0:00:24.4]} 0-1

[Event "Early-Titled-Tuesday-Blitz-August-29-2023"]
[Site "Chess.com"]
[Date "2023.08.29"]
[Round "1"]
[White "druskacik"]
[Black "smilingice"]
[Result "1-0"]
[WhiteElo "2703"]
[BlackElo "2381"]
[TimeControl "180+1"]
[EndTime "8:07:20 PDT"]
[Termination "druskacik won on time"]

1. c4 {[%clk 0:02:58.7]} 1... Nf6 {[%clk 0:02:51.5]} 2. g3 {[%clk 0:02:56.9]}
2... g6 {[%clk 0:02:51.7]} 3. Bg2 {[%clk 0:02:57.1]} 3... Bg7 {[%clk 0:02:52.4]}
4. Nc3 {[%clk 0:02:57.5]} 4... d6 {[%clk 0:02:52.6]} 5. e4 {[%clk 0:02:57.7]}
5... e5 {[%clk 0:02:47.4]} 6. Nge2 {[%clk 0:02:58.1]} 6... O-O {[%clk 0:02:47]}
7. d3 {[%clk 0:02:56.8]} 7... Nc6 {[%clk 0:02:46.6]} 8. O-O {[%clk 0:02:50.5]}
8... a5 {[%clk 0:02:26.3]} 9. h3 {[%clk 0:02:39.4]} 9... Re8 {[%clk 0:02:05.2]}
10. Be3 {[%clk 0:02:33.5]} 10... Nd7 {[%clk 0:02:01.5]} 11. d4 {[%clk
0:02:29.9]} 11... exd4 {[%clk 0:01:58.7]} 12. Nxd4 {[%clk 0:02:30.8]} 12... Nde5
{[%clk 0:01:44.3]} 13. Nxc6 {[%clk 0:02:21.1]} 13... bxc6 {[%clk 0:01:36.6]} 14.
c5 {[%clk 0:02:07]} 14... Nc4 {[%clk 0:01:34.8]} 15. Qe2 {[%clk 0:01:46.5]}
15... Ba6 {[%clk 0:01:13.2]} 16. Rfd1 {[%clk 0:01:38.3]} 16... Rb8 {[%clk
0:01:08.2]} 17. Na4 {[%clk 0:00:51.9]} 17... Nxb2 {[%clk 0:00:54.3]} 18. Qxa6
{[%clk 0:00:49.4]} 18... Nxa4 {[%clk 0:00:54.3]} 19. Rac1 {[%clk 0:00:26.9]}
19... Nc3 {[%clk 0:00:49.6]} 20. Rd2 {[%clk 0:00:20.4]} 20... Nxe4 {[%clk
0:00:49.1]} 21. Bxe4 {[%clk 0:00:19.5]} 21... Rxe4 {[%clk 0:00:48.6]} 22. Qxc6
{[%clk 0:00:20.4]} 22... Rxe3 {[%clk 0:00:32.4]} 23. cxd6 {[%clk 0:00:08.3]}
23... cxd6 {[%clk 0:00:21.4]} 24. fxe3 {[%clk 0:00:07.9]} 24... Qg5 {[%clk
0:00:20.9]} 25. Qxd6 {[%clk 0:00:08]} 25... Qxe3+ {[%clk 0:00:20.5]} 26. Kh1
{[%clk 0:00:06.2]} 26... Be5 {[%clk 0:00:20.5]} 27. Qd3 {[%clk 0:00:05.6]} 27...
Qb6 {[%clk 0:00:16.4]} 28. Rf1 {[%clk 0:00:05.5]} 28... Re8 {[%clk 0:00:05.8]}
29. Qf3 {[%clk 0:00:05.7]} 29... f6 {[%clk 0:00:03.2]} 30. Re2 {[%clk
0:00:06.2]} 30... Rf8 {[%clk 0:00:02.1]} 31. Kg2 {[%clk 0:00:06.8]} 1-0

[Event "Early-Titled-Tuesday-Blitz-August-29-2023"]
[Site "Chess.com"]
[Date "2023.08.29"]
[Round "1"]
[White "krzyzan94"]
[Black "falzehope0"]
[Result "1-0"]
[WhiteElo "2747"]
[BlackElo "2410"]
[TimeControl "180+1"]
[EndTime "8:07:22 PDT"]
[Termination "krzyzan94 won by resignation"]

1. e4 {[%clk 0:03:00.9]} 1... e6 {[%clk 0:02:57.3]} 2. d4 {[%clk 0:02:59.4]}
2... d5 {[%clk 0:02:57.6]} 3. Nc3 {[%clk 0:02:58.5]} 3... f5 {[%clk 0:02:57.5]}
4. exd5 {[%clk 0:02:55.6]} 4... exd5 {[%clk 0:02:57.2]} 5. Nf3 {[%clk
0:02:50.7]} 5... Nf6 {[%clk 0:02:57.1]} 6. Bg5 {[%clk 0:02:46.8]} 6... Be7
{[%clk 0:02:54]} 7. Bd3 {[%clk 0:02:31.7]} 7... O-O {[%clk 0:02:53.7]} 8. O-O
{[%clk 0:02:28.2]} 8... c6 {[%clk 0:02:53.7]} 9. Ne5 {[%clk 0:02:19.4]} 9... Ne4
{[%clk 0:02:51.2]} 10. Bxe7 {[%clk 0:02:18.4]} 10... Qxe7 {[%clk 0:02:52.1]} 11.
f3 {[%clk 0:02:15.6]} 11... Nf6 {[%clk 0:02:44.7]} 12. Re1 {[%clk 0:02:15.5]}
12... Qb4 {[%clk 0:02:44.1]} 13. Ne2 {[%clk 0:02:11.5]} 13... Qxb2 {[%clk
0:02:43.1]} 14. c3 {[%clk 0:02:06.5]} 14... Qa3 {[%clk 0:02:41.9]} 15. Qd2
{[%clk 0:02:04.9]} 15... Nbd7 {[%clk 0:02:36.4]} 16. Ng3 {[%clk 0:01:55]} 16...
Nxe5 {[%clk 0:02:25]} 17. dxe5 {[%clk 0:01:40.2]} 17... Ne8 {[%clk 0:02:23.2]}
18. e6 {[%clk 0:01:37.7]} 18... g6 {[%clk 0:02:19.1]} 19. Re2 {[%clk 0:01:30.6]}
19... Ng7 {[%clk 0:02:18.6]} 20. e7 {[%clk 0:01:26.9]} 20... Re8 {[%clk
0:02:18.3]} 21. Rae1 {[%clk 0:01:27.5]} 21... Bd7 {[%clk 0:02:16.4]} 22. h4
{[%clk 0:01:23.8]} 22... Qd6 {[%clk 0:02:15.1]} 23. Re5 {[%clk 0:00:50.5]} 23...
Rac8 {[%clk 0:01:59.8]} 24. Qg5 {[%clk 0:00:47.5]} 24... Kf7 {[%clk 0:01:55.3]}
25. Qh6 {[%clk 0:00:41]} 25... Qf6 {[%clk 0:01:52.4]} 26. f4 {[%clk 0:00:34.9]}
26... Rh8 {[%clk 0:01:33.7]} 27. c4 {[%clk 0:00:31.2]} 27... Qd6 {[%clk
0:01:09.7]} 28. cxd5 {[%clk 0:00:28.9]} 28... cxd5 {[%clk 0:01:08.1]} 29. Kh2
{[%clk 0:00:28.7]} 29... Be8 {[%clk 0:01:02.1]} 30. Bxf5 {[%clk 0:00:25.6]}
30... Rc3 {[%clk 0:00:49.9]} 31. h5 {[%clk 0:00:20.1]} 31... Rxg3 {[%clk
0:00:42]} 32. Kxg3 {[%clk 0:00:16.1]} 32... Nxh5+ {[%clk 0:00:34.9]} 33. Kh2
{[%clk 0:00:14.8]} 33... Qf6 {[%clk 0:00:29.2]} 34. Be6+ {[%clk 0:00:13.5]}
34... Kxe7 {[%clk 0:00:27.4]} 35. Bg4+ {[%clk 0:00:10.5]} 35... Kd8 {[%clk
0:00:25.8]} 36. Bxh5 {[%clk 0:00:09.8]} 36... Qh4+ {[%clk 0:00:25.4]} 37. Kg1
{[%clk 0:00:10.3]} 37... Qxh5 {[%clk 0:00:25.3]} 38. Rxh5 {[%clk 0:00:09.5]}
38... gxh5 {[%clk 0:00:25.1]} 39. Qf6+ {[%clk 0:00:10.2]} 39... Kc8 {[%clk
0:00:24.6]} 40. Qxh8 {[%clk 0:00:11.1]} 40... Kd7 {[%clk 0:00:24.1]} 41. Qxe8+
{[%clk 0:00:11.7]} 41... Kd6 {[%clk 0:00:25]} 42. Qe5+ {[%clk 0:00:11.6]} 42...
Kc5 {[%clk 0:00:25.9]} 43. Rc1+ {[%clk 0:00:11.4]} 43... Kb6 {[%clk 0:00:25]}
44. Qd6+ {[%clk 0:00:10.7]} 44... Ka5 {[%clk 0:00:24.6]} 45. a3 {[%clk
0:00:10.8]} 45... b5 {[%clk 0:00:23.6]} 46. Rc6 {[%clk 0:00:10.7]} 1-0

[Event "Early-Titled-Tuesday-Blitz-August-29-2023"]
[Site "Chess.com"]
[Date "2023.08.29"]
[Round "1"]
[White "cristiano78"]
[Black "IljaZaragatski"]
[Result "0-1"]
[WhiteElo "2235"]
[BlackElo "2604"]
[TimeControl "180+1"]
[EndTime "8:07:23 PDT"]
[Termination "IljaZaragatski won by checkmate"]

1. d4 {[%clk 0:03:00.9]} 1... d5 {[%clk 0:02:56]} 2. c4 {[%clk 0:02:59.8]} 2...
dxc4 {[%clk 0:02:56.1]} 3. Nf3 {[%clk 0:02:58.7]} 3... Nf6 {[%clk 0:02:54.2]} 4.
e3 {[%clk 0:02:58.8]} 4... e6 {[%clk 0:02:53.9]} 5. Bxc4 {[%clk 0:02:58.4]} 5...
c5 {[%clk 0:02:54.5]} 6. O-O {[%clk 0:02:57.6]} 6... Nc6 {[%clk 0:02:53.5]} 7.
Nc3 {[%clk 0:02:56.2]} 7... a6 {[%clk 0:02:52.1]} 8. a4 {[%clk 0:02:55.7]} 8...
Qc7 {[%clk 0:02:43.9]} 9. dxc5 {[%clk 0:02:17.8]} 9... Bxc5 {[%clk 0:02:42.5]}
10. Qe2 {[%clk 0:02:18.2]} 10... O-O {[%clk 0:02:39.1]} 11. b3 {[%clk
0:02:14.7]} 11... b6 {[%clk 0:02:17.6]} 12. Bb2 {[%clk 0:02:14.9]} 12... Bb7
{[%clk 0:02:17.7]} 13. Rac1 {[%clk 0:02:14.4]} 13... Rac8 {[%clk 0:02:12.1]} 14.
Rfd1 {[%clk 0:02:13.3]} 14... Qb8 {[%clk 0:02:09.6]} 15. Bxa6 {[%clk 0:01:57.7]}
15... Na5 {[%clk 0:01:37.1]} 16. Bxb7 {[%clk 0:01:32.4]} 16... Qxb7 {[%clk
0:01:38]} 17. Qb5 {[%clk 0:01:29.4]} 17... Be7 {[%clk 0:01:24.2]} 18. Ne2 {[%clk
0:01:21.7]} 18... Nd5 {[%clk 0:01:11.1]} 19. Bd4 {[%clk 0:01:08.5]} 19... Ba3
{[%clk 0:01:02.7]} 20. Rxc8 {[%clk 0:01:06.1]} 20... Rxc8 {[%clk 0:01:03.6]} 21.
e4 {[%clk 0:01:02]} 21... Nf6 {[%clk 0:00:54.5]} 22. Bxb6 {[%clk 0:00:53.7]}
22... Nc6 {[%clk 0:00:25.4]} 23. Ng3 {[%clk 0:00:40.3]} 23... h5 {[%clk
0:00:24.8]} 24. a5 {[%clk 0:00:28.4]} 24... Nb4 {[%clk 0:00:24.1]} 25. Qa4
{[%clk 0:00:22.1]} 25... Nc2 {[%clk 0:00:16.7]} 26. Nd4 {[%clk 0:00:18.7]} 26...
Be7 {[%clk 0:00:09.9]} 27. Nxc2 {[%clk 0:00:17.1]} 27... Rxc2 {[%clk 0:00:10.8]}
28. Be3 {[%clk 0:00:14.4]} 28... h4 {[%clk 0:00:11]} 29. Nf1 {[%clk 0:00:13.7]}
29... h3 {[%clk 0:00:11.3]} 30. g3 {[%clk 0:00:13.2]} 30... Nxe4 {[%clk
0:00:11.5]} 31. f3 {[%clk 0:00:13.2]} 31... Nc3 {[%clk 0:00:10]} 32. Qe8+ {[%clk
0:00:09.9]} 32... Kh7 {[%clk 0:00:09.6]} 33. Qxf7 {[%clk 0:00:09.4]} 33... Nxd1
{[%clk 0:00:04.3]} 34. Qh5+ {[%clk 0:00:08.9]} 34... Kg8 {[%clk 0:00:04.4]} 35.
Qe8+ {[%clk 0:00:08.6]} 35... Bf8 {[%clk 0:00:04.4]} 36. Qxe6+ {[%clk
0:00:07.5]} 36... Qf7 {[%clk 0:00:04.5]} 37. Qxf7+ {[%clk 0:00:06.8]} 37... Kxf7
{[%clk 0:00:05.4]} 38. Bf4 {[%clk 0:00:06.1]} 38... Rg2+ {[%clk 0:00:04.9]} 39.
Kh1 {[%clk 0:00:06.2]} 39... Nf2# {[%clk 0:00:05.8]} 0-1

[Event "Early-Titled-Tuesday-Blitz-August-29-2023"]
[Site "Chess.com"]
[Date "2023.08.29"]
[Round "1"]
[White "ChessicallyInclined"]
[Black "alturas_pacificas"]
[Result "1-0"]
[WhiteElo "2719"]
[BlackElo "2403"]
[TimeControl "180+1"]
[EndTime "8:07:24 PDT"]
[Termination "ChessicallyInclined won by resignation"]

1. d4 {[%clk 0:03:00.9]} 1... d5 {[%clk 0:02:58.6]} 2. c4 {[%clk 0:03:00.8]}
2... c6 {[%clk 0:02:55.4]} 3. Nc3 {[%clk 0:03:00.4]} 3... Nf6 {[%clk 0:02:55.8]}
4. e3 {[%clk 0:02:58.9]} 4... Bf5 {[%clk 0:02:54.9]} 5. cxd5 {[%clk 0:02:58.4]}
5... cxd5 {[%clk 0:02:55.4]} 6. Qb3 {[%clk 0:02:58.9]} 6... Bc8 {[%clk
0:02:55.6]} 7. Nf3 {[%clk 0:02:56.2]} 7... e6 {[%clk 0:02:55.8]} 8. Bd3 {[%clk
0:02:50.5]} 8... Be7 {[%clk 0:02:38.8]} 9. O-O {[%clk 0:02:49.8]} 9... O-O
{[%clk 0:02:34.3]} 10. Bd2 {[%clk 0:02:49.1]} 10... Nc6 {[%clk 0:02:32.8]} 11.
Rfc1 {[%clk 0:02:48.6]} 11... Qb6 {[%clk 0:02:26.9]} 12. Qxb6 {[%clk 0:02:42.8]}
12... axb6 {[%clk 0:02:27.8]} 13. Bb5 {[%clk 0:02:12.4]} 13... Bd7 {[%clk
0:02:23.9]} 14. Na4 {[%clk 0:02:07.8]} 14... Nxd4 {[%clk 0:01:30.4]} 15. Nxd4
{[%clk 0:01:56.6]} 15... Bxb5 {[%clk 0:01:28.8]} 16. Nxb6 {[%clk 0:01:47.8]}
16... Ra6 {[%clk 0:01:16.3]} 17. Nc8 {[%clk 0:01:42.1]} 17... Rxc8 {[%clk
0:00:59.4]} 18. Rxc8+ {[%clk 0:01:41.1]} 18... Be8 {[%clk 0:01:00.1]} 19. Rb8
{[%clk 0:01:25.3]} 19... Rb6 {[%clk 0:00:53.5]} 20. b3 {[%clk 0:01:10.1]} 20...
Bd6 {[%clk 0:00:50.6]} 21. Ra8 {[%clk 0:01:09.1]} 21... Kf8 {[%clk 0:00:46.8]}
22. Ba5 {[%clk 0:01:02.4]} 22... Ra6 {[%clk 0:00:46.8]} 23. Rxa6 {[%clk
0:01:02.2]} 23... bxa6 {[%clk 0:00:47.7]} 24. Rc1 {[%clk 0:00:59.6]} 24... Ke7
{[%clk 0:00:41.1]} 25. Rc8 {[%clk 0:00:53.9]} 25... Bd7 {[%clk 0:00:21.8]} 26.
Ra8 {[%clk 0:00:48]} 26... e5 {[%clk 0:00:22.2]} 27. Nc2 {[%clk 0:00:41.1]}
27... Bb5 {[%clk 0:00:20.5]} 28. Bb4 {[%clk 0:00:38.3]} 28... Ne4 {[%clk
0:00:14.6]} 29. Bxd6+ {[%clk 0:00:34]} 29... Kxd6 {[%clk 0:00:14.7]} 30. Nb4
{[%clk 0:00:31.9]} 30... Nc3 {[%clk 0:00:14.8]} 31. a4 {[%clk 0:00:27.7]} 31...
Be2 {[%clk 0:00:11.6]} 32. Rc8 {[%clk 0:00:15.3]} 32... d4 {[%clk 0:00:08.4]}
33. exd4 {[%clk 0:00:11.6]} 33... exd4 {[%clk 0:00:09.3]} 34. f3 {[%clk
0:00:10.7]} 34... g5 {[%clk 0:00:04.7]} 35. Nc2 {[%clk 0:00:10.2]} 35... d3
{[%clk 0:00:03.3]} 36. Rxc3 {[%clk 0:00:10.1]} 36... d2 {[%clk 0:00:02.7]} 37.
Ne3 {[%clk 0:00:10.5]} 37... Ke5 {[%clk 0:00:02.5]} 38. Kf2 {[%clk 0:00:09.9]}
38... Kd4 {[%clk 0:00:03]} 39. Rc8 {[%clk 0:00:08.6]} 39... d1=Q {[%clk
0:00:01.9]} 40. Nxd1 {[%clk 0:00:09]} 40... Bxd1 {[%clk 0:00:02.8]} 41. Rd8+
{[%clk 0:00:09.6]} 41... Kc3 {[%clk 0:00:03.5]} 42. Rxd1 {[%clk 0:00:10.4]}
42... Kxb3 {[%clk 0:00:04.3]} 43. Rd6 {[%clk 0:00:10.7]} 43... Kxa4 {[%clk
0:00:05.2]} 44. Rxa6+ {[%clk 0:00:11]} 1-0

[Event "Early-Titled-Tuesday-Blitz-August-29-2023"]
[Site "Chess.com"]
[Date "2023.08.29"]
[Round "1"]
[White "leschebaza"]
[Black "GalaxyRoman"]
[Result "0-1"]
[WhiteElo "2399"]
[BlackElo "2728"]
[TimeControl "180+1"]
[EndTime "8:07:26 PDT"]
[Termination "GalaxyRoman won on time"]

1. Nf3 {[%clk 0:02:55.6]} 1... Nf6 {[%clk 0:02:57.7]} 2. c4 {[%clk 0:02:54.2]}
2... c5 {[%clk 0:02:57.8]} 3. g3 {[%clk 0:02:51.2]} 3... b6 {[%clk 0:02:58.4]}
4. Bg2 {[%clk 0:02:50.5]} 4... Bb7 {[%clk 0:02:59]} 5. O-O {[%clk 0:02:50.4]}
5... e6 {[%clk 0:02:59.6]} 6. b3 {[%clk 0:02:48.7]} 6... Be7 {[%clk 0:02:59.3]}
7. Bb2 {[%clk 0:02:49.2]} 7... d5 {[%clk 0:02:59.7]} 8. cxd5 {[%clk 0:02:44.3]}
8... Bxd5 {[%clk 0:02:59.1]} 9. Nc3 {[%clk 0:02:40.1]} 9... Bb7 {[%clk
0:02:55.7]} 10. d4 {[%clk 0:02:33.4]} 10... cxd4 {[%clk 0:02:53.7]} 11. Qxd4
{[%clk 0:02:34.3]} 11... Qxd4 {[%clk 0:02:53.1]} 12. Nxd4 {[%clk 0:02:35.2]}
12... Bxg2 {[%clk 0:02:53]} 13. Kxg2 {[%clk 0:02:36.1]} 13... Na6 {[%clk
0:02:48.9]} 14. Nc6 {[%clk 0:02:23.8]} 14... Bc5 {[%clk 0:02:34]} 15. Na4 {[%clk
0:02:19.7]} 15... Nd5 {[%clk 0:02:12.6]} 16. Nxc5 {[%clk 0:02:12.7]} 16... Nxc5
{[%clk 0:02:13.5]} 17. Bxg7 {[%clk 0:02:12.5]} 17... Rg8 {[%clk 0:02:12.2]} 18.
Bb2 {[%clk 0:02:11.6]} 18... Ne4 {[%clk 0:01:58.8]} 19. Rfd1 {[%clk 0:01:57.3]}
19... h5 {[%clk 0:01:51.8]} 20. h4 {[%clk 0:01:53.2]} 20... f5 {[%clk 0:01:17]}
21. e3 {[%clk 0:01:44.1]} 21... Rc8 {[%clk 0:01:01.3]} 22. Nd4 {[%clk 0:01:42]}
22... Kf7 {[%clk 0:00:49.1]} 23. Nxf5 {[%clk 0:01:33.3]} 23... Rc2 {[%clk
0:00:07.8]} 24. Nh6+ {[%clk 0:01:30.9]} 24... Ke8 {[%clk 0:00:08]} 25. Nxg8
{[%clk 0:01:18]} 25... Rxf2+ {[%clk 0:00:07.9]} 26. Kg1 {[%clk 0:00:57.3]} 26...
Rxb2 {[%clk 0:00:04.2]} 27. Rd4 {[%clk 0:00:42.8]} 27... Nxg3 {[%clk 0:00:03.2]}
28. Rxd5 {[%clk 0:00:31.6]} 28... Ne2+ {[%clk 0:00:03]} 29. Kf1 {[%clk
0:00:26.5]} 29... Ng3+ {[%clk 0:00:03.3]} 30. Kg1 {[%clk 0:00:15.7]} 30... exd5
{[%clk 0:00:03.9]} 31. Nf6+ {[%clk 0:00:15.3]} 31... Kf7 {[%clk 0:00:04.3]} 32.
Nxd5 {[%clk 0:00:16.2]} 32... Ke6 {[%clk 0:00:05]} 33. Nf4+ {[%clk 0:00:14.3]}
33... Kf5 {[%clk 0:00:05]} 34. Rc1 {[%clk 0:00:03.9]} 34... Kg4 {[%clk
0:00:04.9]} 35. Rc4 {[%clk 0:00:03.1]} 35... Kf3 {[%clk 0:00:04.3]} 0-1

[Event "Early-Titled-Tuesday-Blitz-August-29-2023"]
[Site "Chess.com"]
[Date "2023.08.29"]
[Round "1"]
[White "AleksanderHnydiuk"]
[Black "FGHSMN"]
[Result "0-1"]
[WhiteElo "2496"]
[BlackElo "2940"]
[TimeControl "180+1"]
[EndTime "8:07:30 PDT"]
[Termination "FGHSMN won on time"]

1. Nf3 {[%clk 0:02:54]} 1... d6 {[%clk 0:02:57.8]} 2. d4 {[%clk 0:02:53.5]} 2...
Nf6 {[%clk 0:02:56.7]} 3. c4 {[%clk 0:02:52]} 3... g6 {[%clk 0:02:56.7]} 4. g3
{[%clk 0:02:52]} 4... Bg7 {[%clk 0:02:56.5]} 5. Bg2 {[%clk 0:02:52.4]} 5... O-O
{[%clk 0:02:57.2]} 6. Nc3 {[%clk 0:02:53.1]} 6... Nc6 {[%clk 0:02:56.8]} 7. O-O
{[%clk 0:02:52.4]} 7... e5 {[%clk 0:02:56.2]} 8. dxe5 {[%clk 0:02:52.8]} 8...
dxe5 {[%clk 0:02:54.8]} 9. Bg5 {[%clk 0:02:51.7]} 9... h6 {[%clk 0:02:52.9]} 10.
Qxd8 {[%clk 0:02:47]} 10... Rxd8 {[%clk 0:02:43.4]} 11. Bxf6 {[%clk 0:02:47]}
11... Bxf6 {[%clk 0:02:44.3]} 12. Nd5 {[%clk 0:02:47.3]} 12... Kg7 {[%clk
0:02:41.8]} 13. Nxc7 {[%clk 0:02:44.9]} 13... Rb8 {[%clk 0:02:42.3]} 14. Nd5
{[%clk 0:02:38]} 14... e4 {[%clk 0:02:41.3]} 15. Nd2 {[%clk 0:02:36.5]} 15... e3
{[%clk 0:02:29.4]} 16. Nxf6 {[%clk 0:02:36.1]} 16... Rxd2 {[%clk 0:02:23.3]} 17.
fxe3 {[%clk 0:02:28.4]} 17... Be6 {[%clk 0:02:18.4]} 18. b3 {[%clk 0:01:36.9]}
18... Rxe2 {[%clk 0:02:17.7]} 19. Nd5 {[%clk 0:01:36.9]} 19... Bxd5 {[%clk
0:02:03.4]} 20. Bxd5 {[%clk 0:01:07.9]} 20... Ne5 {[%clk 0:02:03.5]} 21. Rfe1
{[%clk 0:01:07.9]} 21... Rc2 {[%clk 0:02:00.2]} 22. Rec1 {[%clk 0:01:06]} 22...
Rb2 {[%clk 0:01:57.2]} 23. Rcb1 {[%clk 0:01:05.8]} 23... Re2 {[%clk 0:01:50.6]}
24. Re1 {[%clk 0:01:05.5]} 24... Rxe1+ {[%clk 0:01:42.1]} 25. Rxe1 {[%clk
0:01:04.5]} 25... b5 {[%clk 0:01:41.6]} 26. c5 {[%clk 0:00:57.6]} 26... b4
{[%clk 0:01:31.6]} 27. Rc1 {[%clk 0:00:49.6]} 27... Kf6 {[%clk 0:01:30.7]} 28.
c6 {[%clk 0:00:46.7]} 28... Rc8 {[%clk 0:01:09.7]} 29. c7 {[%clk 0:00:46.9]}
29... Ke7 {[%clk 0:01:07.3]} 30. Bb7 {[%clk 0:00:44.7]} 30... Kd7 {[%clk
0:01:08]} 31. Bxc8+ {[%clk 0:00:40.3]} 31... Kxc8 {[%clk 0:01:08.9]} 32. Kf1
{[%clk 0:00:35.7]} 32... Nf3 {[%clk 0:01:06.5]} 33. Ke2 {[%clk 0:00:33.1]} 33...
Nxh2 {[%clk 0:01:05.4]} 34. Kd3 {[%clk 0:00:27.3]} 34... Ng4 {[%clk 0:01:04.3]}
35. e4 {[%clk 0:00:24.3]} 35... Nf6 {[%clk 0:01:01.2]} 36. Kd4 {[%clk
0:00:22.1]} 36... Nh5 {[%clk 0:00:55.5]} 37. g4 {[%clk 0:00:11.4]} 37... Nf6
{[%clk 0:00:55.5]} 38. Rf1 {[%clk 0:00:05.7]} 38... Ne8 {[%clk 0:00:45.9]} 39.
Rxf7 {[%clk 0:00:06.6]} 39... Nxc7 {[%clk 0:00:46.5]} 40. e5 {[%clk 0:00:05.7]}
40... h5 {[%clk 0:00:44.9]} 41. gxh5 {[%clk 0:00:05.3]} 41... gxh5 {[%clk
0:00:44.9]} 42. Rh7 {[%clk 0:00:05.9]} 42... Kb7 {[%clk 0:00:41.9]} 43. Kc5
{[%clk 0:00:05.4]} 43... Kc8 {[%clk 0:00:39.8]} 44. Kc6 {[%clk 0:00:05.3]} 44...
Ne8 {[%clk 0:00:40]} 45. e6 {[%clk 0:00:04.2]} 45... a5 {[%clk 0:00:34.8]} 46.
Rxh5 {[%clk 0:00:03.2]} 46... Kd8 {[%clk 0:00:32.8]} 47. Rh7 {[%clk 0:00:02.2]}
47... Nf6 {[%clk 0:00:33.1]} 0-1